bitfinex-derivatives/quotes_BTCF0:USTF0_20251204
["timestamp","ask_amount","ask_price","bid_price","bid_amount"]
[1764873337825,0.05945,92554.0,92553.0,0.0698315]
[1764873338227,0.002,92554.0,92553.0,0.0698315]
[1764873339129,0.02764212,92555.0,92554.0,0.05803]
[1764873340129,0.00016212,92555.0,92554.0,0.05803]
[1764873340520,0.02775008,92566.0,92565.0,0.0688301]
[1764873340720,0.05772008,92566.0,92565.0,0.0688301]
[1764873341121,0.0682492,92573.0,92572.0,0.0688293]
[1764873342831,0.0712492,92573.0,92572.0,0.0698293]
[1764873344629,0.003,92573.0,92572.0,0.4306293]
[1764873346226,0.00016212,92582.0,92581.0,0.0686283]
[1764873346535,0.00016212,92582.0,92581.0,0.4294283]
[1764873347424,0.00116212,92582.0,92581.0,0.4294283]
[1764873348526,0.00616212,92582.0,92581.0,0.4304283]
[1764873349030,0.06253212,92582.0,92581.0,0.41963]
[1764873349230,0.06253212,92582.0,92581.0,0.39074]
[1764873349428,0.06253212,92582.0,92581.0,0.41963]
[1764873353439,0.03466212,92582.0,92581.0,0.41963]
[1764873353740,0.00616212,92582.0,92581.0,0.41963]
[1764873354037,0.00026996,92606.0,92605.0,0.0686255]
[1764873354038,0.05663996,92606.0,92605.0,0.0686255]
[1764873354341,0.05905998,92606.0,92605.0,0.41863]
[1764873355342,0.00268998,92606.0,92605.0,0.41863]
[1764873355634,0.00526996,92606.0,92605.0,0.41963]
[1764873355825,0.06163996,92606.0,92605.0,0.05883]
[1764873356029,0.06163996,92606.0,92605.0,0.41963]
[1764873356232,0.06263996,92606.0,92605.0,0.41963]
[1764873357435,0.00626996,92606.0,92605.0,0.41963]
[1764873358342,0.03476996,92606.0,92605.0,0.41963]
[1764873359041,0.00626996,92606.0,92605.0,0.41963]
[1764873359946,0.06263996,92606.0,92605.0,0.41963]
[1764873362144,0.06163996,92606.0,92605.0,0.41963]
[1764873362340,0.05763996,92606.0,92605.0,0.42263]
[1764873362846,0.00126996,92606.0,92605.0,0.42263]
[1764873363041,0.02976996,92606.0,92605.0,0.42263]
[1764873363246,0.00126996,92606.0,92605.0,0.42263]
[1764873364048,0.05735996,92606.0,92605.0,0.42263]
[1764873364242,0.00126996,92606.0,92605.0,0.42263]
[1764873364444,0.0675733,92624.0,92623.0,0.0674034]
[1764873364751,0.07463,92624.0,92623.0,0.4282034]
[1764873365046,0.07463,92624.0,92623.0,0.41741]
[1764873365438,0.07563,92624.0,92623.0,0.41741]
[1764873366049,0.07763,92624.0,92623.0,0.41741]
[1764873366440,0.07763,92624.0,92623.0,0.38797]
[1764873366640,0.07763,92624.0,92623.0,0.3608]
[1764873367246,0.07663,92624.0,92623.0,0.38797]
[1764873367741,0.07463,92624.0,92623.0,0.38797]
[1764873367941,0.07463,92624.0,92623.0,0.38897]
[1764873368343,0.07463,92624.0,92623.0,0.41841]
[1764873369355,0.05678,92624.0,92623.0,0.41841]
[1764873369948,0.07463,92624.0,92623.0,0.41841]
[1764873370552,0.05678,92624.0,92623.0,0.41841]
[1764873371151,0.0675731,92626.0,92625.0,0.05661]
[1764873372449,0.0675731,92626.0,92625.0,0.05761]
[1764873373354,0.12588467,92626.0,92625.0,0.001]
[1764873373662,0.0675731,92626.0,92625.0,0.001]
[1764873373859,0.0675731,92626.0,92625.0,0.02817]
[1764873374155,0.0675731,92626.0,92625.0,0.001]
[1764873374562,0.0854241,92617.0,92616.0,0.00016203]
[1764873374860,0.50672977,92617.0,92616.0,0.00016203]
[1764873375254,0.0675762,92599.0,92598.0,0.05661]
[1764873378053,0.05678,92599.0,92598.0,0.05661]
[1764873378255,0.010794,92618.0,92605.0,0.05661]
[1764873378256,0.11488832,92606.0,92605.0,0.05661]
[1764873378458,0.05678,92606.0,92605.0,0.0674055]
[1764873378849,0.00016185,92608.0,92607.0,0.05661]
[1764873378850,0.02935185,92608.0,92607.0,0.05661]
[1764873379151,0.05936187,92608.0,92607.0,0.05661]
[1764873379549,0.05694185,92608.0,92607.0,0.05661]
[1764873380649,0.07479185,92608.0,92607.0,0.05661]
[1764873381457,0.07479185,92608.0,92607.0,0.05861]
[1764873381953,0.07479185,92608.0,92607.0,0.002]
[1764873382257,0.07479185,92608.0,92607.0,0.02917]
[1764873382648,0.07479185,92608.0,92607.0,0.002]
[1764873383055,0.15249487,92608.0,92607.0,0.002]
[1764873383367,0.07479185,92608.0,92607.0,0.002]
[1764873383553,0.0107962,92599.0,92598.0,0.0107962]
[1764873383760,0.0675762,92599.0,92598.0,0.0674062]
[1764873383960,0.05678,92599.0,92598.0,0.0674062]
[1764873384653,0.05678,92599.0,92598.0,0.0684062]
[1764873384853,0.05678,92599.0,92598.0,0.05761]
[1764873385251,0.05678,92599.0,92598.0,0.05661]
[1764873385454,0.05678,92599.0,92598.0,0.02917]
[1764873386164,0.05678,92599.0,92598.0,0.05861]
[1764873394766,0.05678,92599.0,92598.0,0.0694063]
[1764873395071,0.05732,92599.0,92598.0,0.0694063]
[1764873395974,0.05732,92599.0,92598.0,0.002]
[1764873396176,0.05732,92599.0,92598.0,0.03088]
[1764873396375,0.05732,92599.0,92598.0,0.05854]
[1764873397472,0.05732,92599.0,92598.0,0.05754]
[1764873400475,0.05732,92599.0,92598.0,0.0683363]
[1764873406476,0.0681162,92599.0,92598.0,0.0683363]
[1764873412474,0.0681162,92599.0,92598.0,0.001]
[1764873412475,0.4871077,92599.0,92598.0,0.001]
[1764873412671,0.4289162,92599.0,92598.0,0.001]
[1764873412867,0.0675872,92590.0,92589.0,0.00016203]
[1764873413069,0.07000722,92590.0,92589.0,0.05773203]
[1764873413471,0.05921002,92590.0,92589.0,0.05773203]
[1764873415081,0.05921002,92590.0,92589.0,0.05973203]
[1764873415672,0.05921002,92590.0,92589.0,0.06073203]
[1764873416572,0.05921002,92590.0,92589.0,0.06173203]
[1764873419281,0.11754608,92590.0,92589.0,0.06173203]
[1764873421486,0.13454608,92590.0,92589.0,0.06173203]
[1764873421980,0.13454608,92590.0,92589.0,0.00416203]
[1764873422185,0.07621002,92590.0,92589.0,0.00416203]
[1764873422484,0.07621002,92590.0,92589.0,0.00316203]
[1764873422686,0.07621002,92590.0,92589.0,0.00016203]
[1764873422988,0.07621002,92590.0,92589.0,0.00316203]
[1764873424887,0.07621002,92590.0,92589.0,0.05872203]
[1764873425187,0.13447973,92590.0,92589.0,0.05872203]
[1764873426283,0.56062971,92590.0,92589.0,0.05872203]
[1764873426484,0.017,92600.0,92589.0,0.05872203]
[1764873426485,0.11602971,92592.0,92591.0,0.05562]
[1764873426885,0.05776,92592.0,92591.0,0.05562]
[1764873427985,0.05776,92592.0,92591.0,0.05762]
[1764873428689,0.11602971,92592.0,92591.0,0.05762]
[1764873429287,0.05776,92592.0,92591.0,0.05562]
[1764873429489,0.05776,92592.0,92591.0,0.05862]
[1764873432796,0.57762971,92600.0,92599.0,0.0664162]
[1764873432797,0.53186,92600.0,92599.0,0.0664162]
[1764873432980,0.05776,92600.0,92599.0,0.4272162]
[1764873433187,0.05776,92606.0,92605.0,0.0664155]
[1764873434893,0.05876,92606.0,92605.0,0.0664155]
[1764873437899,0.0695554,92606.0,92605.0,0.0664155]
[1764873438102,0.0695554,92606.0,92603.0,0.3608]
[1764873438103,0.0400554,92606.0,92603.0,0.3608]
[1764873438295,0.05776,92600.0,92599.0,0.0664161]
[1764873438489,0.06018002,92600.0,92599.0,0.0664161]
[1764873438907,0.07097612,92600.0,92599.0,0.0664161]
[1764873439092,0.05776,92590.0,92589.0,0.05578203]
[1764873439298,0.05776,92590.0,92589.0,0.06657933]
[1764873441003,0.05776,92590.0,92589.0,0.06757933]
[1764873442496,0.05776,92590.0,92589.0,0.07057933]
[1764873442696,0.01658,92598.0,92597.0,0.0107964]
[1764873442897,0.07434,92598.0,92597.0,0.0664164]
[1764873444495,0.07434,92598.0,92597.0,0.0674164]
[1764873450307,0.07434,92598.0,92597.0,0.001]
[1764873450494,0.0851372,92590.0,92589.0,0.00016203]
[1764873450699,0.44835722,92590.0,92589.0,0.00016203]
[1764873451710,0.44835722,92590.0,92589.0,0.00316203]
[1764873451905,0.01658,92574.0,92571.0,0.41642]
[1764873452202,0.06018002,92572.0,92571.0,0.41642]
[1764873452417,0.06018002,92572.0,92571.0,0.3608]
[1764873452597,0.06018002,92572.0,92571.0,0.3715994]
[1764873452801,0.06018002,92572.0,92571.0,0.3992794]
[1764873453002,0.06018002,92572.0,92571.0,0.4272194]
[1764873454210,0.06018002,92572.0,92571.0,0.4282194]
[1764873455218,0.06018002,92572.0,92571.0,0.41742]
[1764873456809,0.06218002,92572.0,92571.0,0.41742]
[1764873457213,0.0655399,92567.0,92566.0,0.00027008]
[1764873457511,0.05474,92539.0,92538.0,0.05673]
[1764873457718,0.05474,92539.0,92538.0,0.41753]
[1764873458009,0.05474,92539.0,92538.0,0.38811]
[1764873458211,0.0655445,92528.0,92527.0,0.41753]
[1764873458607,0.05474,92528.0,92527.0,0.41753]
[1764873459009,0.0655446,92527.0,92526.0,0.0002702]
[1764873459211,0.0655446,92527.0,92518.0,0.00016203]
[1764873459212,0.0819955,92519.0,92518.0,0.00016203]
[1764873459412,0.58673552,92519.0,92518.0,0.00016203]
[1764873460212,0.58682405,92519.0,92518.0,0.00016203]
[1764873460609,0.05474,92504.0,92503.0,0.4283373]
[1764873460810,0.07119,92504.0,92503.0,0.4283373]
[1764873461002,0.07127853,92504.0,92503.0,0.41753]
[1764873461206,0.07127853,92504.0,92503.0,0.3608]
[1764873461810,0.07127853,92504.0,92503.0,0.41853]
[1764873461811,8.853e-05,92504.0,92503.0,0.41853]
[1764873462202,8.853e-05,92504.0,92503.0,0.41953]
[1764873463216,8.853e-05,92504.0,92503.0,0.41853]
[1764873463418,0.00208853,92504.0,92503.0,0.41953]
[1764873463817,8.853e-05,92504.0,92503.0,0.41853]
[1764873464019,0.00108853,92504.0,92503.0,0.41953]
[1764873464522,0.00108853,92504.0,92503.0,0.42153]
[1764873464911,0.05827853,92504.0,92503.0,0.42153]
[1764873465116,0.02873853,92504.0,92503.0,0.42153]
[1764873465524,0.05827853,92504.0,92503.0,0.42153]
[1764873466120,0.00108853,92504.0,92503.0,0.42153]
[1764873466615,0.00016212,92513.0,92512.0,0.0827263]
[1764873466919,0.02782,92533.0,92532.0,0.067274]
[1764873467121,0.05736,92533.0,92532.0,0.067274]
[1764873468018,0.01665,92540.0,92539.0,0.0672732]
[1764873468019,0.0681631,92540.0,92539.0,0.0672732]
[1764873468321,0.0681639,92533.0,92532.0,0.05747]
[1764873468512,0.07058392,92533.0,92532.0,0.05747]
[1764873469611,0.0681643,92529.0,92528.0,0.0391044]
[1764873469812,0.0681643,92529.0,92528.0,0.0391045]
[1764873470014,0.05736,92529.0,92528.0,0.0391045]
[1764873470719,0.05736,92529.0,92528.0,0.0672745]
[1764873470919,0.05736,92529.0,92528.0,0.0682745]
[1764873473619,0.02782,92529.0,92528.0,0.0682745]
[1764873473916,0.3716031,92540.0,92539.0,0.0672732]
[1764873473917,0.05736,92540.0,92539.0,0.0672732]
[1764873474310,0.05736,92540.0,92539.0,0.05647]
[1764873474512,0.05736,92540.0,92539.0,0.0283]
[1764873474707,0.05736,92540.0,92530.0,0.0672742]
[1764873474708,0.0681641,92531.0,92530.0,0.0672742]
[1764873474913,0.07058412,92531.0,92530.0,0.0672742]
[1764873475220,0.05978002,92531.0,92530.0,0.0672742]
[1764873477116,0.06078002,92531.0,92530.0,0.0682742]
[1764873480119,0.001,92531.0,92530.0,0.0682742]
[1764873480525,0.00016212,92542.0,92541.0,0.0672729]
[1764873481118,0.00258214,92542.0,92541.0,0.0672729]
[1764873481414,0.00016212,92542.0,92541.0,0.0672729]
[1764873482326,0.00216212,92542.0,92541.0,0.0682729]
[1764873483026,0.05736,92560.0,92559.0,0.0672708]
[1764873484522,0.00016212,92569.0,92559.0,0.0672708]
[1764873484723,0.0679006,92564.0,92563.0,0.0684303]
[1764873484918,0.0679006,92564.0,92550.0,0.00016212]
[1764873484919,0.0108017,92552.0,92550.0,0.00016212]
[1764873485122,0.05952002,92551.0,92550.0,0.00016212]
[1764873485720,0.0679028,92542.0,92541.0,0.006]
[1764873486025,0.0388443,92530.0,92529.0,0.0684343]
[1764873486215,0.0571,92530.0,92529.0,0.0684343]
[1764873487423,0.0571,92530.0,92529.0,0.0704343]
[1764873488227,0.0571,92530.0,92529.0,0.002]
[1764873488429,0.0571,92530.0,92529.0,0.03161]
[1764873488927,0.0571,92530.0,92529.0,0.05963]
[1764873489726,0.0571,92530.0,92529.0,0.002]
[1764873490438,0.0571,92530.0,92529.0,0.05963]
[1764873491527,0.0571,92530.0,92529.0,0.002]
[1764873494840,0.0571,92530.0,92529.0,0.03161]
[1764873495129,0.02906,92530.0,92529.0,0.05963]
[1764873496628,0.08720183,92538.0,92537.0,0.0684334]
[1764873496938,0.02922212,92539.0,92538.0,0.05763]
[1764873497137,0.03164214,92539.0,92538.0,0.05763]
[1764873497334,0.05968214,92539.0,92538.0,0.05763]
[1764873497535,0.0398633,92538.0,92537.0,0.3608]
[1764873497739,0.0741,92536.0,92535.0,0.02961]
[1764873498033,0.0741,92536.0,92529.0,0.002]
[1764873498034,0.0679042,92530.0,92529.0,0.002]
[1764873498234,0.0108053,92521.0,92520.0,0.00016212]
[1764873498428,0.010808,92498.0,92497.0,0.3608]
[1764873498625,0.067908,92498.0,92497.0,0.41843]
[1764873498836,0.0571,92498.0,92497.0,0.41843]
[1764873499635,0.0741,92504.0,92503.0,0.05763]
[1764873499837,0.00016212,92507.0,92506.0,0.068437]
[1764873500040,0.05968214,92507.0,92506.0,0.068437]
[1764873500343,0.00016212,92507.0,92506.0,0.068437]
[1764873500536,0.00016212,92507.0,92506.0,0.429237]
[1764873501943,0.00016212,92507.0,92506.0,0.431237]
[1764873502531,0.00116212,92507.0,92506.0,0.433237]
[1764873504427,0.0741,92528.0,92527.0,0.0684346]
[1764873504628,0.0679038,92534.0,92533.0,0.0684339]
[1764873505543,0.0679045,92528.0,92527.0,0.0684341]
[1764873505741,0.0571,92528.0,92527.0,0.0684341]
[1764873506144,0.0679035,92537.0,92536.0,0.0684335]
[1764873506435,0.00242002,92537.0,92536.0,0.0684335]
[1764873506643,0.05952002,92537.0,92536.0,0.0684335]
[1764873507943,0.00242002,92537.0,92536.0,0.0684335]
[1764873508840,0.05952002,92537.0,92536.0,0.0684335]
[1764873509036,0.05952002,92537.0,92536.0,0.0694335]
[1764873509231,0.05952002,92537.0,92536.0,0.0724335]
[1764873509440,0.06052002,92537.0,92536.0,0.06163]
[1764873509641,0.06052002,92537.0,92520.0,0.3608]
[1764873509642,0.0679048,92525.0,92520.0,0.3608]
[1764873509837,0.0679048,92525.0,92509.0,0.3608]
[1764873510041,0.3608,92528.0,92509.0,0.3608]
[1764873510042,0.0679066,92510.0,92509.0,0.41843]
[1764873510244,0.0571,92510.0,92509.0,0.41843]
[1764873511031,0.0679057,92518.0,92509.0,0.3608]
[1764873511237,0.03148002,92510.0,92509.0,0.3618]
[1764873511437,0.05952002,92510.0,92509.0,0.4302367]
[1764873512246,0.05952002,92510.0,92509.0,0.002]
[1764873512447,0.05952002,92510.0,92509.0,0.001]
[1764873512632,0.0571,92501.0,92500.0,0.00016212]
[1764873512836,0.07032762,92501.0,92500.0,0.00016212]
[1764873514641,0.07032762,92501.0,92500.0,0.00116212]
[1764873515345,0.07132762,92501.0,92500.0,0.00316212]
[1764873516937,0.07132762,92501.0,92500.0,0.00216212]
[1764873517139,0.07032762,92501.0,92500.0,0.00016212]
[1764873517345,0.07132762,92501.0,92500.0,0.00116212]
[1764873518338,0.07132762,92501.0,92500.0,0.0692177]
[1764873518339,0.03297002,92501.0,92500.0,0.0692177]
[1764873518549,0.06276002,92501.0,92500.0,0.0692177]
[1764873518746,0.06276002,92501.0,92500.0,0.05841]
[1764873518946,0.05934,92498.0,92497.0,0.040158]
[1764873519145,0.06176002,92498.0,92497.0,0.040158]
[1764873519537,0.05934,92489.0,92488.0,0.00016212]
[1764873519851,0.06176002,92489.0,92488.0,0.02951212]
[1764873520544,0.06176002,92489.0,92488.0,0.05857212]
[1764873521048,0.07569,92496.0,92495.0,0.0692183]
[1764873522244,0.07669,92496.0,92495.0,0.0702183]
[1764873522948,0.001,92496.0,92495.0,0.0712183]
[1764873526648,0.00016212,92498.0,92497.0,0.05841]
[1764873526953,0.017,92520.0,92513.0,0.05841]
[1764873526954,0.02979,92514.0,92513.0,0.05841]
[1764873527145,0.07634,92520.0,92519.0,0.0692155]
[1764873527446,0.0871455,92520.0,92519.0,0.0692155]
[1764873527652,0.0871455,92520.0,92519.0,0.0401555]
[1764873527946,0.0871455,92520.0,92519.0,0.0692155]
[1764873528653,0.0931455,92520.0,92519.0,0.0702155]
[1764873529042,0.06534,92520.0,92519.0,0.0702155]
[1764873529244,0.03579,92520.0,92519.0,0.0702155]
[1764873529849,0.02979,92520.0,92519.0,0.0692155]
[1764873530153,0.02979,92520.0,92519.0,0.0702155]
[1764873530154,0.03179,92520.0,92519.0,0.0702155]
[1764873530352,0.0902154,92520.0,92519.0,0.002]
[1764873530552,0.0892154,92520.0,92519.0,0.003]
[1764873531744,0.0892154,92520.0,92519.0,0.002]
[1764873531745,0.0902154,92520.0,92519.0,0.002]
[1764873531952,0.0902154,92520.0,92519.0,0.001]
[1764873538550,0.0691564,92511.0,92510.0,0.00016212]
[1764873538755,0.07157642,92511.0,92510.0,0.00016212]
[1764873539550,0.07157642,92511.0,92510.0,0.00116212]
[1764873540059,0.07257642,92511.0,92510.0,0.00216212]
[1764873544567,0.001,92511.0,92510.0,0.05991212]
[1764873544870,0.03293002,92511.0,92510.0,0.05991212]
[1764873545066,0.05927,92511.0,92510.0,0.05991212]
[1764873547482,0.001,92511.0,92510.0,0.05991212]
[1764873547679,0.0690748,92526.0,92525.0,0.05775]
[1764873547982,0.07149482,92526.0,92525.0,0.05775]
[1764873548178,0.07149482,92526.0,92525.0,0.0685548]
[1764873549173,0.07149482,92526.0,92525.0,0.0695548]
[1764873549373,0.06469002,92526.0,92525.0,0.0695548]
[1764873550273,0.06269002,92526.0,92525.0,0.0695548]
[1764873551175,0.06027,92526.0,92525.0,0.0695548]
[1764873551376,0.03151,92526.0,92525.0,0.0695548]
[1764873551578,0.06027,92526.0,92525.0,0.0695548]
[1764873553179,0.06027,92526.0,92525.0,0.05875]
[1764873554375,0.06027,92526.0,92525.0,0.001]
[1764873554978,0.0690764,92511.0,92510.0,0.02899212]
[1764873556181,0.0690764,92511.0,92510.0,0.02999212]
[1764873556379,0.0700764,92511.0,92510.0,0.03299212]
[1764873557081,0.0700764,92511.0,92510.0,0.06191212]
[1764873557284,0.0700764,92511.0,92510.0,0.00416212]
[1764873558171,0.0700764,92511.0,92510.0,0.03299212]
[1764873558374,0.0690764,92511.0,92510.0,0.02999212]
[1764873558577,0.0700764,92511.0,92510.0,0.03099212]
[1764873559988,0.0700764,92511.0,92510.0,0.00216212]
[1764873560387,0.0700764,92511.0,92493.0,0.0384404]
[1764873560388,0.05827,92494.0,92493.0,0.0384404]
[1764873560686,0.01647,92496.0,92486.0,0.36107031]
[1764873560687,0.05827,92487.0,92486.0,0.41882031]
[1764873560879,0.06069002,92487.0,92486.0,0.41882031]
[1764873561076,0.02951,92487.0,92486.0,0.41882031]
[1764873561491,0.05827,92487.0,92486.0,0.41882031]
[1764873562583,0.05927,92487.0,92486.0,0.41982031]
[1764873563183,0.05927,92487.0,92486.0,0.42082031]
[1764873566484,0.05927,92487.0,92486.0,0.00227031]
[1764873566684,0.0690803,92478.0,92477.0,0.00016212]
[1764873566993,0.069082,92463.0,92462.0,8.575e-05]
[1764873567198,0.05827,92463.0,92462.0,8.575e-05]
[1764873567391,0.05827,92463.0,92462.0,0.05783575]
[1764873568199,0.05927,92463.0,92462.0,0.06083575]
[1764873569301,0.070082,92463.0,92462.0,0.03291575]
[1764873569482,0.070082,92463.0,92462.0,0.00408575]
[1764873571393,0.05927,92463.0,92462.0,0.00408575]
[1764873571595,0.05927,92463.0,92462.0,0.06183575]
[1764873572589,0.05927,92463.0,92462.0,0.03291575]
[1764873573000,0.05927,92463.0,92462.0,0.06183575]
[1764873574500,0.001,92463.0,92462.0,0.06183575]
[1764873576196,0.00342002,92463.0,92462.0,0.06183575]
[1764873576499,0.06193002,92463.0,92462.0,0.06183575]
[1764873578302,0.001,92463.0,92462.0,0.06183575]
[1764873581294,0.00016221,92472.0,92471.0,0.0684211]
[1764873581495,0.00016221,92472.0,92471.0,0.4292211]
[1764873583800,0.03287223,92472.0,92471.0,0.4302211]
[1764873584001,0.06146223,92472.0,92471.0,0.4302211]
[1764873584395,0.06146223,92472.0,92471.0,0.4312211]
[1764873584796,0.06146223,92472.0,92471.0,0.4322211]
[1764873585200,0.06146223,92472.0,92471.0,0.0705911]
[1764873585396,0.06146223,92472.0,92471.0,0.0695911]
[1764873585803,0.05904221,92472.0,92471.0,0.0695911]
[1764873586108,0.00116221,92472.0,92471.0,0.0695911]
[1764873586904,0.00116221,92472.0,92471.0,0.0685911]
[1764873587808,0.00116221,92472.0,92471.0,0.0695911]
[1764873588707,0.00016221,92472.0,92471.0,0.0685911]
[1764873588909,0.00116221,92472.0,92471.0,0.0705911]
[1764873590802,0.07598221,92472.0,92471.0,0.0705911]
[1764873591002,0.08679321,92472.0,92471.0,0.0425611]
[1764873591403,0.08679321,92472.0,92471.0,0.0705911]
[1764873593212,0.07598221,92472.0,92471.0,0.0705911]
[1764873597808,0.05878221,92472.0,92471.0,0.0705911]
[1764873598003,0.06959321,92472.0,92471.0,0.0705911]
[1764873598207,0.06959321,92472.0,92471.0,0.003]
[1764873598208,0.43039321,92472.0,92471.0,0.003]
[1764873598511,0.43039321,92472.0,92462.0,8.575e-05]
[1764873598512,0.010812,92463.0,92462.0,8.575e-05]
[1764873598709,0.08805202,92463.0,92462.0,8.575e-05]
[1764873599820,0.08805202,92463.0,92462.0,0.00108575]
[1764873600315,0.08805202,92463.0,92462.0,0.00508575]
[1764873600619,0.08905202,92463.0,92462.0,0.00508575]
[1764873601022,0.08905202,92463.0,92453.0,0.00010862]
[1764873601320,0.07085312,92454.0,92453.0,0.00010862]
[1764873602110,0.07093887,92454.0,92453.0,0.00010862]
[1764873602713,0.0684339,92447.0,92446.0,0.00027043]
[1764873602910,0.0684365,92425.0,92421.0,0.0384404]
[1764873603114,0.0684365,92425.0,92416.0,0.05766061]
[1764873603115,0.06852225,92425.0,92418.0,0.0384404]
[1764873603315,0.0280171,92421.0,92419.0,0.3608]
[1764873603521,0.06004002,92420.0,92419.0,0.3608]
[1764873603722,0.06004002,92420.0,92408.0,0.3608]
[1764873603723,0.0108177,92416.0,92408.0,0.3608]
[1764873603916,0.0172,92421.0,92412.0,0.0672479]
[1764873603917,0.05772,92413.0,92412.0,0.0672479]
[1764873604810,0.05772,92409.0,92408.0,0.3716184]
[1764873605025,0.06022577,92409.0,92408.0,0.0108184]
[1764873605319,0.05772,92407.0,92406.0,0.00027055]
[1764873605520,0.06014002,92407.0,92406.0,0.00027055]
[1764873605824,0.06014002,92407.0,92406.0,0.05752055]
[1764873606522,0.06014002,92407.0,92391.0,0.0108204]
[1764873606523,0.05772,92386.0,92378.0,0.0108219]
[1764873606714,0.05772,92386.0,92379.0,0.0108218]
[1764873606918,0.07523,92376.0,92375.0,0.05725]
[1764873607316,0.05772,92376.0,92375.0,0.0680723]
[1764873607623,0.05782589,92376.0,92375.0,0.0680723]
[1764873607816,0.07533589,92376.0,92375.0,0.0680723]
[1764873608122,0.07533589,92376.0,92375.0,0.0108223]
[1764873608320,0.05772,92374.0,92363.0,0.3608]
[1764873608521,0.07765002,92367.0,92366.0,0.05752066]
[1764873608716,0.07765002,92367.0,92366.0,0.00027066]
[1764873608909,0.07765002,92367.0,92366.0,0.02913066]
[1764873609110,0.07765002,92367.0,92366.0,0.00027066]
[1764873609615,0.07765002,92367.0,92366.0,0.00427066]
[1764873610130,0.07865002,92367.0,92366.0,0.00527066]
[1764873610422,0.07865002,92367.0,92366.0,0.00127066]
[1764873610622,0.07765002,92367.0,92366.0,0.00027066]
[1764873610817,0.08065002,92367.0,92366.0,0.00127066]
[1764873611125,0.06314002,92367.0,92366.0,0.05852066]
[1764873611819,0.06314002,92367.0,92366.0,0.00127066]
[1764873612818,0.44157702,92367.0,92366.0,0.00127066]
[1764873613022,0.44157702,92367.0,92352.0,0.3608]
[1764873613023,0.0685449,92353.0,92352.0,0.3608]
[1764873613225,0.0578534,92353.0,92352.0,0.41805]
[1764873614312,0.0588534,92353.0,92352.0,0.42005]
[1764873614514,0.0011334,92353.0,92352.0,0.42005]
[1764873615114,0.0011334,92353.0,92352.0,0.42105]
[1764873615314,0.0588534,92353.0,92352.0,0.42105]
[1764873615619,0.0588534,92353.0,92352.0,0.39266]
[1764873615824,0.0588534,92353.0,92352.0,0.3638]
[1764873616227,0.0588534,92353.0,92352.0,0.003]
[1764873617417,0.0608534,92353.0,92352.0,0.002]
[1764873617920,0.0716783,92353.0,92352.0,0.001]
[1764873618122,0.0716783,92353.0,92352.0,0.002]
[1764873621821,0.0608534,92353.0,92352.0,0.05925]
[1764873622219,0.0608534,92353.0,92352.0,0.002]
[1764873622419,0.5652534,92353.0,92352.0,0.002]
[1764873624422,0.05772,92335.0,92334.0,0.41805]
[1764873624725,0.0578422,92335.0,92334.0,0.4288771]
[1764873625521,0.0578422,92335.0,92334.0,0.4328771]
[1764873625727,0.0598422,92335.0,92334.0,0.4408771]
[1764873626223,0.0618422,92335.0,92334.0,0.005]
[1764873626621,0.068548,92327.0,92316.0,0.01073237]
[1764873626821,0.07096802,92327.0,92316.0,0.01073237]
[1764873627124,0.43176802,92327.0,92320.0,0.0108287]
[1764873627430,0.43176802,92327.0,92316.0,0.0108292]
[1764873627627,0.43176802,92327.0,92320.0,0.0108288]
[1764873627830,0.43276802,92327.0,92326.0,0.05752078]
[1764873628124,0.43276802,92327.0,92326.0,0.00027078]
[1764873628524,0.42194002,92327.0,92326.0,0.00027078]
[1764873628723,0.42194002,92327.0,92326.0,0.05752078]
[1764873628926,0.42894002,92327.0,92326.0,0.00127078]
[1764873629229,0.42894002,92327.0,92277.0,0.01697]
[1764873629230,0.06855,92310.0,92309.0,0.42900346]
[1764873629426,0.06855,92310.0,92309.0,0.01095346]
[1764873629823,0.0685515,92297.0,92296.0,0.0680816]
[1764873630019,0.05772,92297.0,92296.0,0.0680816]
[1764873630220,0.05783135,92297.0,92296.0,0.0680816]
[1764873630927,0.05772,92294.0,92293.0,0.0680819]
[1764873631121,0.06014002,92294.0,92293.0,0.05725]
[1764873631326,0.05772,92287.0,92286.0,0.0575209]
[1764873631632,0.06014002,92287.0,92286.0,0.0575209]
[1764873631838,0.00242002,92287.0,92286.0,0.0852737]
[1764873632328,0.005,92294.0,92293.0,0.068082]
[1764873632545,0.00016248,92296.0,92295.0,0.05725]
[1764873632733,0.0025825,92296.0,92295.0,0.07422]
[1764873633123,0.0304125,92296.0,92295.0,0.05725]
[1764873633526,0.05772,92287.0,92286.0,0.0575209]
[1764873633829,0.01751,92295.0,92294.0,0.0108318]
[1764873634028,0.07251,92295.0,92294.0,0.0673818]
[1764873634627,0.07251,92295.0,92294.0,0.05655]
[1764873634818,0.061,92295.0,92294.0,0.05655]
[1764873635018,0.0795,92295.0,92294.0,0.05655]
[1764873635623,0.0658322,92291.0,92287.0,0.0108327]
[1764873635818,0.0245,92295.0,92286.0,0.0002709]
[1764873635819,0.055,92287.0,92286.0,0.0002709]
[1764873636023,0.05742002,92287.0,92286.0,0.0287609]
[1764873636627,0.05742002,92287.0,92286.0,0.0002709]
[1764873638133,0.02709,92251.0,92250.0,0.38929]
[1764873638339,0.02719078,92251.0,92250.0,0.42807044]
[1764873638633,0.02719078,92251.0,92250.0,1.928187]
[1764873638829,0.05510078,92251.0,92250.0,1.928187]
[1764873639232,0.05510078,92251.0,92250.0,1.91735]
[1764873639432,0.05510078,92251.0,92250.0,1.89129]
[1764873639837,0.05710078,92251.0,92250.0,1.89129]
[1764873640440,0.00210078,92251.0,92250.0,1.89129]
[1764873640643,0.05710078,92251.0,92250.0,1.89129]
[1764873640940,0.02919078,92251.0,92250.0,1.89129]
[1764873641132,0.00210078,92251.0,92250.0,1.90826]
[1764873641735,0.00210078,92251.0,92250.0,1.89129]
[1764873642038,0.05710078,92251.0,92250.0,1.89129]
[1764873642640,0.05710078,92251.0,92250.0,0.3608]
[1764873642834,0.07093768,92251.0,92250.0,0.38929]
[1764873643235,0.07093768,92251.0,92250.0,0.3608]
[1764873643536,0.0658372,92248.0,92246.0,0.00027102]
[1764873643739,0.0658372,92248.0,92226.0,0.02806]
[1764873643740,0.055,92227.0,92226.0,0.02806]
[1764873644039,0.055,92227.0,92223.0,0.3608]
[1764873644040,0.055,92224.0,92223.0,0.05655]
[1764873644245,0.05742002,92224.0,92223.0,0.05655]
[1764873644634,0.05742002,92224.0,92215.0,0.02849]
[1764873644635,0.055,92216.0,92215.0,0.02849]